Cogmind - Beta 14 @@@ ROGUE MODE // 2024.09.14 @ 19:50:04 Player: daxter767676 Result: Destroyed by NZ-XDU(R) with Subdweller Beam Cannon Performance ------------- Evolutions (0) 0 Regions Visited (2) 400 Robots Destroyed (25) 125 Value Destroyed (642) 642 Prototype IDs (2) 40 Alien Tech Used (0) 0 Bonus (0) 0 TOTAL SCORE: 1207 Bonus ------- None Cogmind --------- Core Integrity 0/250 Matter 300/300 Energy 198/200 System Corruption 0% Temperature Cool (9) Movement Rolling (95) Ox1 Location -10/Subcaves Parts ------- > --- POWER (1) -------- Subdweller Power Source > --- PROPULSION (2) --- Wheel Wheel > --- UTILITY (2) ------ Scrap Shield > --- WEAPON (2) ------- Subdweller Beam Cannon Makeshift Hammer > --- INVENTORY (5) ---- Light Nuclear Core Wheel Subdweller Monowheel Grenade Launcher Subdweller Shrapnel Launcher Peak State ------------ > --- POWER ------------ Subdweller Power Source > --- PROPULSION ------- Wheel Wheel > --- UTILITY ---------- Scrap Shield > --- WEAPON ----------- Subdweller Beam Cannon Makeshift Hammer > --- INVENTORY -------- Light Nuclear Core Wheel Subdweller Monowheel Grenade Launcher Subdweller Shrapnel Launcher [Rating: 14] Favorites ----------- Power Light Ion Engine Engine Light Ion Engine Propulsion Wheel Leg Aluminum Leg Wheel Wheel Utility Seismic Detector Device Seismic Detector Storage Small Storage Unit Protection Scrap Shield Weapon Assault Rifle Energy Gun Particle Gun Energy Cannon Subdweller Beam Cannon Ballistic Gun Assault Rifle Launcher Subdweller Shrapnel Launcher Special Weapon Flamer Impact Weapon Makeshift Hammer Build | -11 -10 -10 ------- Run | Yrd Mat Sub Slots Evolved . | . . . Power . | . . . Propulsion . | . . . Utility . | . . . Weapon . | . . . Parts Attached 21 | 3 6 12 Power 2 | . 1 1 Engine 2 | . 1 1 Core . | . . . Reactor . | . . . Propulsion 6 | 2 2 2 Treads . | . . . Leg . | . . . Wheel 6 | 2 2 2 Hover . | . . . Flight . | . . . Utility 4 | 1 1 2 Device 3 | 1 1 1 Storage . | . . . Processor . | . . . Hackware . | . . . Protection 1 | . . 1 Artifact . | . . . Weapon 9 | . 2 7 Energy Gun 2 | . 2 . Energy Cannon 1 | . . 1 Ballistic Gun 1 | . . 1 Ballistic Cannon . | . . . Launcher 1 | . . 1 Special Weapon 3 | . . 3 Impact Weapon 1 | . . 1 Slashing Weapon . | . . . Piercing Weapon . | . . . Special Melee Weapon . | . . . Unidentified Prototypes . | . . . Parts Lost 4 | . 1 3 Power 1 | . 1 . Propulsion 1 | . . 1 Utility 1 | . . 1 Weapon 1 | . . 1 Highest Loss Streak 2 | . 1 2 To Critical Strikes . | . . . Average Slot Usage (%) 92 | . 99 87 Engine 13 | . 13 14 Wheel 27 | . 28 27 Device 15 | . 26 5 Protection 5 | . . 10 Energy Gun 8 | . 14 3 Energy Cannon 3 | . . 7 Ballistic Gun 8 | . 14 4 Special Weapon 2 | . . 5 Impact Weapon 3 | . . 6 Peak Build Rating 14 | 7 8 14 Average Rating 9 | 6 7 11 On Entrance 7 | 6 7 8 Naked Turns . | . . . Heaviest Build 34 | 14 15 34 Greatest Support 26 | 26 26 20 Greatest Overweight (x) 1 | . . 1 Average Overweight (x) . | . . . Largest Inventory Capacity 8 | 8 8 5 Average Capacity 5 | 8 5 5 Most Carried 8 | 8 8 5 Average Carried 5 | 7 5 4 Final Capacity 8 | 8 5 5 Final Carried 8 | 8 5 5 Class Distribution -------------------- 42% | Mutant 40% | Scavenger-Mutant 17% | Subdweller-Mutant Dominant Class ---------------- Scavenger-Mutant | -10/Materials Mutant | -10/Subcaves Resources | -11 -10 -10 ----------- Run | Yrd Mat Sub Matter Collected 540 | 248 106 186 Remotely . | . . . Salvage Created 735 | 88 181 466 Parts 47 | 7 20 20 Haulers Intercepted . | . . . Recyclers Shooed . | . . . Parts Field Recycled . | . . . Retrieved Matter . | . . . Parts Self-Destructed 18 | . . 18 Prevented . | . . . Kills | -11 -10 -10 ------- Run | Yrd Mat Sub Combat Hostiles Destroyed 21 | . 7 14 Melee 2 | . . 2 Guns 12 | . 7 5 Cannons 1 | . . 1 Classes Destroyed 7 | 2 3 2 Tunneler 2 | 2 . . Recycler 1 | 1 . . Watcher 1 | . 1 . Swarmer 8 | . 5 3 Grunt 2 | . 2 . Sentry 1 | . . 1 Subdweller 10 | . . 10 Best Kill Streak 3 | 2 2 3 Combat Bots Only 3 | . 2 3 Max Kills in Single Turn 1 | 1 1 1 Gunslinging . | . . . Exploded . | . . . Melee 1 | . . 1 Uniques/NPCs Destroyed . | . . . Combat | -11 -10 -10 -------- Run | Yrd Mat Sub Hostile Shots Fired 110 | . 51 59 Missed 35 | . 13 22 Damage Taken 1167 | . 344 823 Core 253 | . 117 136 Absorbed by Shields . | . . . Core Remaining (%) 100 | 100 . . Volleys Fired 60 | 6 30 24 Largest 2 | 2 2 2 Hottest 200 | 60 85 200 Shots Fired 107 | 12 60 35 Gun 95 | 12 60 23 Cannon 5 | . . 5 Launcher . | . . . Special 7 | . . 7 Kinetic 50 | 6 30 14 Thermal 57 | 6 30 21 Explosive . | . . . Electromagnetic . | . . . Robot Hit Streak 8 | 4 8 8 Robot Miss Streak 6 | 1 6 2 Penetration Max . | . . . Secondary Targets . | . . . Shots Hit Robots 83 | 8 34 41 Core Hits 27 | 4 11 12 Critical Kills . | . . . Critical Parts Destroyed 4 | . . 4 Critical Strikes 4 | . . 4 Smash 4 | . . 4 Melee Attacks 31 | . . 31 Impact 31 | . . 31 Slashing . | . . . Piercing . | . . . Sneak Attacks . | . . . Combat Hostiles . | . . . Follow-up Attacks . | . . . Damage Inflicted 1844 | 93 453 1298 Guns 816 | 93 453 270 Cannons 30 | . . 30 Explosions . | . . . Melee 940 | . . 940 Ramming . | . . . Kinetic 490 | 51 244 195 Thermal 414 | 42 209 163 Explosive . | . . . Electromagnetic . | . . . Impact 940 | . . 940 Slashing . | . . . Piercing . | . . . Highest Corruption . | . . . Average Corruption . | . . . Corruption Purged . | . . . Corruption Blocked . | . . . Overload Shots . | . . . Overflow Damage 217 | . . 217 Projectiles . | . . . Explosions . | . . . Melee 217 | . . 217 Knockbacks 7 | . . 7 Impact 7 | . . 7 Kinetic . | . . . Secondary . | . . . Self-Inflicted Damage . | . . . Shots . | . . . Rammed . | . . . Targets Rammed . | . . . Kicked . | . . . Crushed . | . . . Highest Temperature 215 | . 215 8 Average Temperature 81 | . 83 4 Received Heat Transfer 174 | . 51 123 Siege Activations . | . . . Robots Corrupted 6 | . . 6 Combat Hostiles 6 | . . 6 Parts Fried 5 | . . 5 Impact Corruptions 9 | . . 9 Robots Melted . | . . . Combat Hostiles . | . . . Parts Melted 1 | . . 1 Heat Transferred 1167 | 100 555 512 Parts Sabotaged . | . . . Parts Stolen . | . . . Parts Stripped . | . . . Power Chain Reactions . | . . . Alert | -11 -10 -10 ------- Run | Yrd Mat Sub Peak Influence 298 | 15 298 . Initial 9 | . 9 . Average 96 | 9 100 . Maximum Alert Level 1 | . 1 . Low Security (%) 89 | 100 88 . Level 1 10 | . 11 . Level 2 . | . . . Level 3 . | . . . Level 4 . | . . . Level 5 . | . . . High Security . | . . . Max Security . | . . . Squads Dispatched . | . . . Investigation . | . . . Extermination . | . . . Reinforcement . | . . . Assault . | . . . Garrison . | . . . Intercept . | . . . Searches Triggered . | . . . Construction Impeded . | . . . Haulers Reinforced . | . . . Active Scanning Responses . | . . . Cargo Convoy Interrupts . | . . . Stealth | -11 -10 -10 --------- Run | Yrd Mat Sub Distress Signals . | . . . Communications Jammed . | . . . Distress Signals . | . . . Times Spotted 30 | . 13 17 Peak Tracking Total 4 | . 4 3 Tactical Retreats 4 | . 4 . Traps | -11 -10 -10 ------- Run | Yrd Mat Sub Traps Triggered 1 | . . 1 Indirectly . | . . . Trap Hack Attempts . | . . . Triggered . | . . . Disarmed . | . . . Reprogrammed . | . . . Reused 1 | . . 1 Traps Extracted . | . . . Installed 1 | . . 1 Triggered 1 | . . 1 Machines | -11 -10 -10 ---------- Run | Yrd Mat Sub Machines Disabled . | . . . Max in Single Turn . | . . . Machines Repaired . | . . . Machines Dismantled . | . . . Machines Sabotaged . | . . . Overloaded Fab Kills . | . . . Hacking | -11 -10 -10 --------- Run | Yrd Mat Sub Machines Accessed 2 | . 2 . Terminals 2 | . 2 . Fabricators . | . . . Repair Stations . | . . . Recycling Units . | . . . Scanalyzers . | . . . Garrison Access . | . . . Total Hacks 7 | . 7 . Successful 4 | . 4 . Failed 3 | . 3 . Catastrophic . | . . . Database Lockouts . | . . . Manual 6 | . 6 . Terminals 7 | . 7 . Fabricators . | . . . Repair Stations . | . . . Recycling Units . | . . . Scanalyzers . | . . . Garrison Access . | . . . Terminal Hacks 1 | . 1 . Prototype ID Bank 1 | . 1 . Fabricator Hacks . | . . . Repair Station Hacks . | . . . Recycling Unit Hacks . | . . . Scanalyzer . | . . . Garrison Access Hacks . | . . . Unauthorized Hacks 3 | . 3 . Terminals 3 | . 3 . Track 1 | . 1 . Assimilate 2 | . 2 . Fabricators . | . . . Repair Stations . | . . . Recycling Units . | . . . Scanalyzers . | . . . Garrison Access . | . . . Data Cores Recovered . | . . . Used . | . . . Hacking Detections 2 | . 2 . Full Trace Events . | . . . Feedback Events . | . . . Feedback Blocked . | . . . Robot Schematics Acquired . | . . . Robots Built . | . . . Authchips . | . . . Time . | . . . Total Robot Build Rating . | . . . Part Schematics Acquired . | . . . Parts Built . | . . . Authchips . | . . . Time . | . . . Total Part Build Rating . | . . . Parts Repaired . | . . . Time . | . . . Parts Recycled . | . . . Recycled Matter . | . . . Retrieved Matter . | . . . Retrieved Components . | . . . Parts Scanalyzed . | . . . Part Schematics Acquired . | . . . Parts Damaged . | . . . Bothacking | -11 -10 -10 ------------ Run | Yrd Mat Sub Used RIF Installer . | . . . Robots Hacked . | . . . Non-combat . | . . . Combat . | . . . Robot Hacks Applied . | . . . Relay Couplers Released . | . . . Fabnet Peak Effective % . | . . . Robots Rewired 1 | . . 1 Allies Hacked . | . . . Hacks Repelled . | . . . Allies | -11 -10 -10 -------- Run | Yrd Mat Sub Total Allies 1 | . . 1 Largest Group 1 | . . 1 Highest-Rated Group 19 | . . 19 Highest-Rated Ally 19 | . . 19 Total Orders . | . . . Ally Attacks 2 | . . 2 Total Damage 22 | . . 22 Kills . | . . . Allies Corrupted . | . . . Allies Melted . | . . . Intel | -11 -10 -10 ------- Run | Yrd Mat Sub Robot Analysis Total . | . . . Derelict Logs Recovered 2 | . . 2 Drone Launches . | . . . Drone Recoveries . | . . . Exploration | -11 -10 -10 ------------- Run | Yrd Mat Sub Turns Passed 2171 | 54 1000 1117 Spaces Moved 1326 | 24 387 915 Core . | . . . Treads . | . . . Legs 10 | 10 . . Wheels 1316 | 14 387 915 Hover . | . . . Flight . | . . . Fastest Speed 80 | 90 80 80 Average Speed 89 | 103 85 91 Slowest Speed 120 | 120 90 95 Overloaded Moves . | . . . Propulsion Burnouts . | . . . Robots Hopped . | . . . Cave-ins Triggered . | . . . Exploration Rate (%) 36 | 3 64 42 Regions Visited 2 Branch Regions 1 Pre-discovered Areas 2 | . . 2 Known Exits Taken . | . . . Unknown Exits Taken 2 | 1 1 . Scrap Searched 3 | . . 3 Spaces Dug . | . . . Terrain Destroyed 1 | . . 1 Melee . | . . . Projectile 1 | . . 1 AOE . | . . . Terrain Rammed . | . . . Walls Destroyed . | . . . Machines Disabled . | . . . Actions | -11 -10 -10 --------- Run | Yrd Mat Sub Total 2166 | 40 1003 1123 Wait 684 | 5 565 114 Move 1324 | 23 386 915 Hop . | . . . Pick Up 10 | 1 5 4 Fast Attach 9 | 3 1 5 Attach 1 | . . 1 Detach 1 | 1 . . Swap 11 | . 5 6 Drop 21 | 1 11 9 Fire 60 | 6 30 24 Melee 31 | . . 31 Ram . | . . . Kick . | . . . Crush . | . . . Escape Stasis . | . . . Rewire 3 | . . 3 Trap 1 | . . 1 Miscellaneous 10 | . . 10 Route ------- -11/Scrapyard -10/Materials (discovered 4 exits: [*Mat x2] / [*Min] / [*Sub]) -10/Subcaves (discovered 1 exit: [*Mat]) History --------- Turn | Location | Event 17 | -11/Scrapyard | Discovered new exit (range 3) 55 | -11/Scrapyard | Entered Materials 197 | -10/Materials | Discovered new exit (range 16) 290 | -10/Materials | Discovered new exit (range 14) 732 | -10/Materials | Build established: Scavenger-Mutant 1045 | -10/Materials | Discovered new exit (range 16) 1050 | -10/Materials | Discovered new exit (range 6) 1055 | -10/Materials | Entered Subcaves 1055 | -10/Subcaves | Learned location of Zion (-7) 1062 | -10/Subcaves | Shifting Twisted Machinery released Mak. Leg 1069 | -10/Subcaves | Shifting Twisted Machinery released Flamer 1243 | -10/Subcaves | Core integrity fell below 50% 1329 | -10/Subcaves | Shifting Twisted Machinery released Sub. Shrapnel Launcher 1333 | -10/Subcaves | Shifting Twisted Machinery released Shrapnel Trap 1393 | -10/Subcaves | Discovered new exit (range 3) 1518 | -10/Subcaves | Ambushed by Subdwellers from Twisted Machinery 1594 | -10/Subcaves | Build established: Mutant 1888 | -10/Subcaves | A swath of the cavern ceiling suddenly collapsed 2054 | -10/Subcaves | Core integrity fell below 20% 2104 | -10/Subcaves | Build established: Subdweller-Mutant 2172 | -10/Subcaves | Destroyed by NZ-XDU(R) with Subdweller Beam Cannon Last Messages --------------- 02037_ MM-VE5(R) knocked back. 02038_ MM-VE5(R) system terminally corrupted. 02038_ Sub. Monowheel fried. 02041_ U5-MQ7(R) knocked back. 02045_ Destroyed Disposable Heat Sink. 02045_ U5-MQ7(R) system corrupted by crushing effect. 02046_ U5-MQ7(R) affixes Scrap Shield Fragment to Scrap Shield. 02051_ U5-MQ7(R) misfires. 02052_ U5-MQ7(R) knocked back. 02066_ U5-MQ7(R) destroyed. 02069_ Scrap Shield Fragment affixed to Scrap Shield (+49). 02169_ Q7-NXP(R) suffers critical hit (Smash). 02169_ Destroyed Sub. Monowheel. 02169_ Q7-NXP(R) system corrupted by crushing effect. 02170_ Q7-NXP(R) system terminally corrupted. 02170_ Sub. Optics fried. Map ----- +----------------------------------------------------+ | ??????????????????????????????????????# " | | ??????????????????????????????????????# ##### " | | ?????????????????????????????????????# ##???# " | | ????????????????????????????????????# #???## # | | ????????????????????????????????????#####???# # | | ????????????????????????????????????????????## ## | | ????????????????????????????????????????????### ## | | ???????????????????????????????????#######?##"#" # | | ???????????????????????????????????# ###""#""" | | ???????????????????????????????????# "#"#""#"#" | | ???????????????????????????????????# "" "#"##""# | | ??????????????????????????????????## ##""" | | ??????????????????????????????????? "##"" | | ???????????????????????????????????? " "##""" | | ???????????????????????????????????## "###"" | | ??????????????????????????????????## #"##"# | | ??????????????????????????????????#" "##"" | | ???????????????????????????????????#" "#""#" | | ???????????????????????????????????#" "##"## | | ???????????????????????????????????#" #?#### | | ???????????????????????????????????#"# ###??# | | ?????????????????????????????#####??#"% # ##?# | | ?????????????????????####?####"""#####"###"[% ##" | | ?????????????????????#""###"# ###### ! #### | | ?????????????????????## R ## " | | ????????????????#?#??# %@## """ *% | | ??????????????""#"# ?## #### ## " ## # !% | | ??????????????" ## #?# ##"" ####### ### | | ????????????????# " # #### ## #?????## ##?? | | ?????????????????# " " # ### ##??????####??? | | ?????????????????## " #?###?????????????? | | ??????????????????# " ## #?????????????????? | | ????????????????"" " #######?????????????????? | | ?????????????? "## ##???????????????????????? | | ?????????????# ##?#"" ##????????????????????????? | | ??????????????#????#####?????????????????????????? | | ?????????????????????????????????????????????????? | | ?????????????????????????????????????????????????? | | ?????????????????????????????????????????????????? | | ?????????????????????????????????????????????????? | | ?????????????????????????????????????????????????? | | ?????????????????????????????????????????????????? | | ?????????????????????????????????????????????????? | | ?????????????????????????????????????????????????? | | ?????????????????????????????????????????????????? | | ?????????????????????????????????????????????????? | | ?????????????????????????????????????????????????? | | ?????????????????????????????????????????????????? | | ?????????????????????????????????????????????????? | | ?????????????????????????????????????????????????? | +----------------------------------------------------+ Best States ------------- Heat Dissipation 35 Energy Generation 15 Energy Capacity 250 Matter Stores 300 Matter Capacity 300 Sight Range 16 Terrain Scan Range 14 Terrain Scan Density 10 Armor Coverage 800 Evasion (%) 50 Item Schematics ----------------- None Robot Schematics ------------------ None Fabricated ------------ Nothing Alien Tech Used ----------------- None Achievements -------------- None Challenges ------------ None Game ------ Seed TimingFusionBlaster Manual? 0 Play Time 00:20:50 Cumulative 130.3 hours Start 2024.09.14 @ 19:30:31 End 2024.09.14 @ 19:50:04 Sessions 1 Manual Loads 0 Difficulty Rogue Special Mode None Game No. 128 Rogue 126 Adventurer 2 Explorer 0 Win Type - Total 0 Types 0/0/0/0/0/0/0/0/0 Lore% 57 Gallery% 58 Achievement% 44 Wizard Run 0 Options --------- Layout 2 ASCII 0 Keyboard 1 Movement Vi Keybinds 0 Fullscreen 1 Font 24/Smallcaps Map View 50x44 Zoom Use 0% Tactical HUD 1 Map Filters NONE Filters NONE Steam SD RUN: b98aeafe-eb04-40bd-b12c-942aed9a5391